bitfinex/quotes_ETHUSD_20241006
["timestamp","ask_amount","ask_price","bid_price","bid_amount"]
[1728196991297,3.30606,2419.8,2419.6,3.09171512]
[1728196993451,3.30606,2419.8,2419.7,0.0048]
[1728196993628,3.30606,2419.8,2419.7,0.26565066]
[1728196996595,3.30606,2419.8,2419.7,0.26085066]
[1728197007947,3.30592,2419.9,2419.7,0.26085066]
[1728197008484,3.30592,2419.9,2419.8,0.0048]
[1728197008817,3.30592,2419.9,2419.8,0.26492869]
[1728197009216,3.30592,2419.9,2419.8,0.26012869]
[1728197009735,3.30592,2419.9,2419.6,2.0048]
[1728197009931,3.30592,2419.9,2419.7,0.2601796]
[1728197017175,3.30592,2419.9,2419.7,0.2649796]
[1728197021735,3.30592,2419.9,2419.7,0.2601796]
[1728197022383,4.13402,2419.9,2419.7,0.2601796]
[1728197022746,4.13402,2419.9,2419.8,0.5781085]
[1728197022945,4.13402,2419.9,2419.8,0.83823719]
[1728197023145,4.13402,2419.9,2419.8,1.56095642]
[1728197023345,4.13402,2419.9,2419.8,0.83823719]
[1728197024284,4.13402,2419.9,2419.8,0.8383183]
[1728197024456,4.878009,2419.9,2419.8,0.8383183]
[1728197024657,4.878009,2419.9,2419.8,0.26012869]
[1728197025155,3.30619,2419.7,2419.6,2.0]
[1728197025356,3.30619,2419.7,2419.6,2.52383766]
[1728197027468,3.30619,2419.7,2419.6,2.0]
[1728197027675,3.30619,2419.7,2419.6,2.52383577]
[1728197028653,3.30619,2419.7,2419.6,3.28701346]
[1728197030977,3.30619,2419.7,2419.6,3.37362835]
[1728197032703,3.30606,2419.8,2419.6,4.16472835]
[1728197032901,3.30606,2419.8,2419.7,1.37362835]
[1728197033670,3.30606,2419.8,2419.7,0.61050149]
[1728197034503,3.30606,2419.8,2419.7,0.55599004]
[1728197034504,6.6122,2419.8,2419.7,0.55599004]
[1728197035290,3.30606,2419.8,2419.7,0.55599004]
[1728197035475,3.30606,2419.8,2419.7,0.81618328]
[1728197037318,3.30587,2420.0,2419.7,0.81618328]
[1728197037525,3.30587,2420.0,2419.8,0.55599004]
[1728197037526,3.306,2419.9,2419.8,0.55599004]
[1728197038019,3.306,2419.9,2419.8,0.81612548]
[1728197040814,3.306,2419.9,2419.8,0.26015146]
[1728197041120,3.30587,2420.0,2419.6,4.39414925]
[1728197041121,3.30607,2419.8,2419.6,4.39414925]
[1728197041678,3.30607,2419.8,2419.6,2.7959]
[1728197048444,3.30607,2419.8,2419.7,0.0048]
[1728197050619,3.30607,2419.8,2419.7,0.26498642]
[1728197051836,3.30599,2419.9,2419.7,0.26498642]
[1728197056359,3.30588,2420.0,2419.7,0.26498642]
[1728197056654,3.30605,2419.8,2419.7,0.26498642]
[1728197061461,3.30605,2419.8,2419.7,0.26018642]
[1728197066460,6.61179,2420.0,2419.7,0.26018642]
[1728197066659,3.30592,2419.9,2419.7,0.26498642]
[1728197066957,6.61173,2420.0,2419.8,0.7526]
[1728197067335,3.30586,2420.0,2419.9,0.26006867]
[1728197079030,3.30586,2420.0,2419.7,0.0048]
[1728197079232,3.30598,2419.9,2419.8,0.26008544]
[1728197080442,3.30598,2419.9,2419.8,0.26488544]
[1728197091435,4.847834,2419.9,2419.8,0.26488544]
[1728197091650,4.847834,2419.9,2419.8,0.26008544]
[1728197092010,3.30617,2419.8,2419.6,2.0]
[1728197092323,3.30617,2419.8,2419.7,0.26011361]
[1728197100653,7.41581,2419.9,2419.7,0.26011361]
[1728197104471,3.30605,2419.8,2419.7,0.26011361]
[1728197107871,4.63615,2419.8,2419.7,0.26011361]
[1728197108168,5.430363,2419.8,2419.7,0.26011361]
[1728197121059,3.3066,2419.4,2419.3,2.0]
[1728197121361,3.3066,2419.4,2419.3,2.25168279]
[1728197127400,3.30646,2419.5,2419.3,3.04988279]
[1728197127967,6.61301,2419.5,2419.3,3.04988279]
[1728197128267,3.30646,2419.5,2419.3,3.04988279]
[1728197128570,3.3066,2419.4,2419.3,3.04988279]
[1728197132053,3.3066,2419.4,2419.3,2.25168279]
[1728197133461,3.30646,2419.5,2419.4,0.8047]
[1728197133630,3.30627,2419.7,2419.4,2.69652974]
[1728197134113,3.30635,2419.6,2419.4,2.69652974]
[1728197135752,3.30627,2419.7,2419.4,2.69652974]
[1728197135916,3.30646,2419.5,2419.4,2.69652974]
[1728197145512,3.30646,2419.5,2419.4,3.10151632]
[1728197146897,3.30627,2419.7,2419.5,2.0]
[1728197147092,3.30601,2419.9,2419.8,2.0]
[1728197147746,3.30601,2419.9,2419.8,2.29337439]
[1728197153330,4.10041,2419.9,2419.8,2.29337439]
[1728197156847,3.30601,2419.9,2419.8,2.29337439]
[1728197173203,5.384541,2419.9,2419.8,0.29337439]
[1728197173748,3.30633,2419.6,2419.5,2.0]
[1728197185565,3.30633,2419.6,2419.5,2.29179729]
[1728197193242,3.30633,2419.6,2419.5,0.29179729]
[1728197193444,5.346874,2419.6,2419.5,0.29179729]
[1728197193664,3.30674,2419.3,2419.2,4.13468709]
[1728197200563,3.30674,2419.3,2419.2,4.41681032]
[1728197216212,3.85674,2419.3,2419.2,2.28212323]
[1728197217776,4.64144,2419.3,2419.2,0.28212323]
[1728197217980,0.7847,2419.1,2418.9,2.0]
[1728197218198,3.30715,2419.0,2418.9,2.0]
[1728197228442,3.85715,2419.0,2418.9,2.0]
[1728197229521,3.30756,2418.7,2418.6,2.0]
[1728197230711,3.30756,2418.7,2418.6,2.2820395]
[1728197237717,3.30743,2418.8,2418.6,2.2820395]
[1728197238237,6.61497,2418.8,2418.6,2.2820395]
[1728197238419,3.30743,2418.8,2418.6,2.2820395]
[1728197238746,3.30756,2418.7,2418.6,2.2820395]
[1728197238906,3.30743,2418.8,2418.6,2.2820395]
[1728197241949,6.61497,2418.8,2418.6,2.2820395]
[1728197243250,3.30756,2418.7,2418.6,2.2820395]
[1728197244702,4.06286,2418.7,2418.6,2.2820395]
[1728197248027,4.06286,2418.7,2418.6,0.2820395]
[1728197248028,5.349889,2418.7,2418.6,0.2820395]
[1728197254967,4.62499,2418.6,2418.5,130.0]
[1728197260557,4.62499,2418.6,2418.5,129.57622395]
[1728197260880,4.62499,2418.6,2418.5,126.74505857]
[1728197261040,5.83781343,2418.6,2418.5,126.74505857]
[1728197261535,10.19181343,2418.6,2418.5,126.74505857]
[1728197261732,5.83781343,2418.6,2418.5,125.68962915]
[1728197261951,5.83781343,2418.6,2418.5,124.35120136]
[1728197262576,5.83781343,2418.6,2418.5,124.61473713]
[1728197262887,5.83781343,2418.6,2418.5,123.97762633]
[1728197264769,5.83781343,2418.6,2418.5,122.58943995]
[1728197268364,5.83781343,2418.6,2418.5,121.39273276]
[1728197268568,5.83781343,2418.6,2418.5,120.94757775]
[1728197268874,6.26724997,2418.6,2418.5,120.69864429]
[1728197270189,6.26724997,2418.6,2418.5,120.18576979]
[1728197270858,10.62124997,2418.6,2418.5,117.79235541]
[1728197271165,11.03494997,2418.6,2418.5,115.85430795]
[1728197272389,30.78494997,2418.6,2418.5,115.60972627]
[1728197274492,30.78494997,2418.6,2418.5,109.95266938]
[1728197280100,30.78494997,2418.6,2418.5,108.88979487]
[1728197291494,32.26877219,2418.6,2418.5,108.88979487]
[1728197291999,30.78494997,2418.6,2418.5,108.88979487]
[1728197292512,32.26928965,2418.6,2418.5,108.88979487]
[1728197293425,32.26928965,2418.6,2418.5,107.51435345]
[1728197294265,32.91684152,2418.6,2418.5,107.51435345]
[1728197295898,32.91684152,2418.6,2418.5,107.29790292]
[1728197301970,32.91684152,2418.6,2418.5,107.11618314]
[1728197303230,32.91684152,2418.6,2418.5,106.45422552]
[1728197304743,35.91684152,2418.6,2418.5,106.45422552]
[1728197305049,38.94477724,2418.6,2418.5,106.45422552]
[1728197305439,40.95961152,2418.6,2418.5,82.41052345]
[1728197305645,44.53636059,2418.6,2418.5,70.50739163]
[1728197306088,41.79759262,2418.6,2418.5,55.20873335]
[1728197306239,46.09768618,2418.6,2418.5,54.27333792]
[1728197306444,46.09768618,2418.6,2418.5,48.06413755]
[1728197306794,46.09768618,2418.6,2418.5,47.47542311]
[1728197307273,46.14768618,2418.6,2418.5,44.21244945]
[1728197307487,41.84759262,2418.6,2418.5,26.2818542]
[1728197307651,41.84759262,2418.6,2418.5,21.1373887]
[1728197307652,42.58428281,2418.6,2418.5,21.1373887]
[1728197307841,42.58428281,2418.6,2418.5,20.7231887]
[1728197308037,42.58428281,2418.6,2418.5,20.3089887]
[1728197308240,42.58428281,2418.6,2418.5,19.8947887]
[1728197308479,42.58428281,2418.6,2418.5,19.4805887]
[1728197308691,42.58428281,2418.6,2418.5,18.80285293]
[1728197308850,42.58428281,2418.6,2418.5,18.38865293]
[1728197309245,42.58428281,2418.6,2418.5,17.97405293]
[1728197309443,41.37145938,2418.6,2418.5,7.99474661]
[1728197309658,41.37145938,2418.6,2418.5,7.58014661]
[1728197309863,41.37145938,2418.6,2418.5,7.16554661]
[1728197310161,41.37145938,2418.6,2418.5,5.93054452]
[1728197310339,0.05,2418.4,2417.2,0.773]
[1728197310549,3.30947,2417.3,2417.2,0.773]
[1728197312458,3.85947,2417.3,2417.2,0.773]
[1728197316599,0.55,2417.2,2416.2,0.7718]
[1728197316883,3.31078,2416.4,2416.3,1.23213283]
[1728197317391,3.31078,2416.4,2416.3,0.9951279]
[1728197317850,3.31078,2416.4,2416.3,0.7718]
[1728197319491,3.31078,2416.4,2416.3,0.99525357]
[1728197320185,3.31057,2416.5,2416.4,0.7718]
[1728197341284,3.31111,2416.2,2415.8,0.8323]
[1728197341605,3.31111,2416.2,2415.9,1.03383171]
[1728197341838,3.31112,2416.1,2415.9,1.03383171]
[1728197342105,3.31111,2416.2,2415.9,1.03383171]
[1728197342624,6.6222,2416.2,2415.9,1.03383171]
[1728197342776,3.31109,2416.2,2415.9,1.03383171]
[1728197342977,3.31125,2416.0,2415.9,1.03383171]
[1728197346470,3.31125,2416.0,2415.9,0.8323]
[1728197353324,3.31174,2415.7,2415.3,0.7945]
[1728197353523,3.31174,2415.7,2415.4,0.18872512]
[1728197353524,6.62349,2415.7,2415.4,0.18872512]
[1728197353826,3.31174,2415.7,2415.4,0.7614]
[1728197354036,6.62352,2415.7,2415.6,0.7614]
[1728197354478,6.62352,2415.7,2415.6,0.95002369]
[1728197356464,3.31174,2415.7,2415.6,0.95002369]
[1728197362666,3.31154,2415.8,2415.6,0.95002369]
[1728197363068,3.31142,2415.9,2415.6,0.95002369]
[1728197363909,3.31132,2416.0,2415.6,0.95002369]
[1728197364984,6.6227,2416.0,2415.6,0.95002369]
[1728197365499,3.31132,2416.0,2415.6,0.95002369]
[1728197366608,6.62267,2416.0,2415.6,0.95002369]
[1728197366803,3.31132,2416.0,2415.6,0.95002369]
[1728197367016,6.62265,2416.0,2415.6,0.95002369]
[1728197367887,3.31132,2416.0,2415.6,0.95002369]
[1728197368090,3.31141,2415.9,2415.6,0.95002369]
[1728197368482,3.31162,2415.8,2415.6,0.95002369]
[1728197368713,6.62272,2416.0,2415.6,0.95002369]
[1728197368883,3.31147,2415.9,2415.6,0.95002369]
[1728197369087,3.31147,2415.9,2415.7,0.7582]
[1728197369285,3.31147,2415.9,2415.8,0.18702006]
[1728197369704,3.31133,2416.0,2415.8,0.763]
[1728197370075,3.31133,2416.0,2415.9,0.18216725]
[1728197370576,3.31139,2415.9,2415.8,0.763]
[1728197371976,3.31139,2415.9,2415.8,0.0048]
[1728197379559,4.08219,2415.9,2415.8,0.0048]
[1728197379762,4.63219,2415.9,2415.8,0.0048]
[1728197386367,3.31139,2415.9,2415.8,0.0048]
[1728197387887,3.31139,2415.9,2415.8,0.7743]
[1728197390073,3.31133,2416.0,2415.8,0.7743]
[1728197390275,3.31133,2416.0,2415.8,0.95659718]
[1728197390847,6.62217,2416.2,2415.8,1.21208182]
[1728197391061,3.31107,2416.2,2416.1,0.0048]
[1728197391493,3.31107,2416.2,2416.1,0.18693876]
[1728197391650,3.31107,2416.2,2416.1,0.0048]
[1728197391984,3.22595732,2416.2,2416.1,0.0048]
[1728197393305,3.22595732,2416.2,2416.1,0.18693876]
[1728197393629,3.31085,2416.3,2416.2,0.7879]
[1728197394014,3.31085,2416.3,2416.2,0.96992553]
[1728197394348,3.31063,2416.5,2416.2,0.96992553]
[1728197394558,3.31063,2416.5,2416.4,0.0048]
[1728197394852,3.31063,2416.5,2416.4,0.18671994]
[1728197395018,3.31063,2416.5,2416.4,0.0048]
[1728197395729,6.62101,2416.6,2416.4,0.18656571]
[1728197395933,3.31057,2416.5,2416.4,0.0048]
[1728197396610,3.31057,2416.5,2416.4,0.7927]
[1728197397947,6.62098,2416.6,2416.4,0.7927]
[1728197398242,3.31044,2416.6,2416.4,0.7927]
[1728197398711,3.31057,2416.5,2416.4,0.7927]
[1728197401751,3.31057,2416.5,2416.4,0.0048]
[1728197407700,3.31057,2416.5,2416.4,0.18656571]
[1728197408024,4.08707,2416.5,2416.4,0.18656571]
[1728197408603,4.08707,2416.5,2416.4,0.0048]
[1728197411906,3.31057,2416.5,2416.4,0.0048]
[1728197412124,3.31044,2416.6,2416.4,0.8115]
[1728197412326,3.31023,2416.8,2416.4,0.8115]
[1728197412493,3.31023,2416.8,2416.7,0.8115]
[1728197412943,3.31023,2416.8,2416.7,0.99302195]
[1728197415604,3.31003,2416.9,2416.7,0.99302195]
[1728197415814,3.31003,2416.9,2416.8,0.0048]
[1728197416114,3.31003,2416.9,2416.8,0.18625043]
[1728197416328,3.31003,2416.9,2416.8,0.0048]
[1728197416499,3.31003,2416.9,2416.8,0.18625043]
[1728197416700,3.31003,2416.9,2416.8,0.0048]
[1728197417313,3.31003,2416.9,2416.8,0.18625043]
[1728197419044,6.61969,2417.1,2416.8,0.18141711]
[1728197419231,6.61969,2417.1,2417.0,0.0048]
[1728197419601,6.61969,2417.1,2417.0,0.18611158]
[1728197454175,3.30982,2417.1,2417.0,0.18611158]
[1728197460251,3.30962,2417.2,2417.0,0.18611158]
[1728197460461,3.30962,2417.2,2417.0,0.96941158]
[1728197460696,3.30975,2417.1,2417.0,0.18611158]
[1728197462657,4.09605,2417.1,2417.0,0.18611158]
[1728197468334,4.09605,2417.1,2417.0,0.0048]
[1728197468912,4.64605,2417.1,2417.0,0.0048]
[1728197471151,4.09605,2417.1,2417.0,0.0048]
[1728197471449,3.30975,2417.1,2417.0,0.0048]
[1728197472515,3.30975,2417.1,2417.0,0.18603659]
[1728197472713,3.30975,2417.1,2417.0,0.0048]
[1728197472946,3.30975,2417.1,2417.0,0.18603659]
[1728197473152,3.30975,2417.1,2417.0,0.0048]
[1728197473334,3.30975,2417.1,2417.0,0.18603659]
[1728197473648,3.30975,2417.1,2417.0,0.0048]
[1728197473849,3.30975,2417.1,2417.0,0.18603659]
[1728197478514,4.06305,2417.1,2417.0,0.18603659]
[1728197478714,4.06305,2417.1,2417.0,0.0048]
[1728197478933,3.30975,2417.1,2417.0,0.0048]
[1728197479126,3.30975,2417.1,2417.0,0.18603659]
[1728197480460,3.30975,2417.1,2417.0,0.0048]
[1728197480644,3.30975,2417.1,2417.0,0.18603659]
[1728197481645,3.30975,2417.1,2417.0,0.0048]
[1728197484460,3.30975,2417.1,2417.0,0.18600536]
[1728197492669,3.30975,2417.1,2417.0,0.0048]
[1728197498022,3.30975,2417.1,2417.0,0.18593871]
[1728197500463,3.30962,2417.2,2417.0,0.18593871]
[1728197500626,3.30962,2417.2,2417.1,0.7802]
[1728197500971,3.30962,2417.2,2417.1,0.96128595]
[1728197508270,3.30938,2417.4,2417.1,0.96128595]
[1728197508467,3.30948,2417.3,2417.2,0.0048]
[1728197508690,3.30948,2417.3,2417.2,0.1858332]
[1728197511273,3.30926,2417.5,2417.2,0.1858332]
[1728197511470,3.30936,2417.4,2417.2,0.1858332]
[1728197511646,3.30936,2417.4,2417.3,0.0048]
[1728197512162,3.30936,2417.4,2417.3,0.18565761]
[1728197512420,3.30936,2417.4,2417.3,0.0048]
[1728197512565,3.30936,2417.4,2417.3,0.18565761]
[1728197512772,3.30936,2417.4,2417.3,0.0048]
[1728197513639,3.30936,2417.4,2417.3,0.18565761]
[1728197514259,3.30936,2417.4,2417.3,0.0048]
[1728197514463,3.30926,2417.5,2417.3,0.0048]
[1728197514771,3.30926,2417.5,2417.4,1.00290486]
[1728197518248,3.3088,2417.8,2417.4,1.00290486]
[1728197518454,3.3088,2417.8,2417.6,0.0048]
[1728197518689,3.3087,2417.9,2417.7,0.1854071]
[1728197518975,3.3087,2417.9,2417.8,0.0048]
[1728197519652,3.3087,2417.9,2417.8,0.18535021]
[1728197523899,3.30853,2418.0,2417.8,0.18535021]
[1728197524075,6.61714,2418.0,2417.8,0.18535021]
[1728197524286,3.30865,2417.9,2417.8,0.18535021]
[1728197525106,3.30853,2418.0,2417.8,0.18535021]
[1728197525316,3.30865,2417.9,2417.8,0.18535021]
[1728197526880,3.30853,2418.0,2417.8,0.18535021]
[1728197528405,3.30853,2418.0,2417.8,0.45419202]
[1728197528613,3.30853,2418.0,2417.8,0.18535021]
[1728197529145,3.30832,2418.2,2417.9,0.8221]
[1728197529349,3.30805,2418.4,2418.1,0.0048]
[1728197529616,3.30811,2418.3,2418.0,0.18022835]
[1728197529825,3.30811,2418.3,2418.2,0.18012292]
[1728197529977,3.30811,2418.3,2418.1,0.18017563]
[1728197530174,3.30811,2418.3,2418.0,0.46005776]
[1728197530417,3.30805,2418.4,2418.0,0.54276059]
[1728197530627,3.30805,2418.4,2418.1,1.00227563]
[1728197531006,6.61611,2418.4,2418.1,1.00227563]
[1728197532330,3.30815,2418.3,2418.1,1.00227563]
[1728197543051,3.30805,2418.4,2418.1,1.00227563]
[1728197544444,4.12682,2418.6,2418.1,1.92405612]
[1728197544606,3.30796,2418.5,2418.1,1.92405612]
[1728197544808,3.30798,2418.4,2418.1,1.92405612]
[1728197545641,6.61604,2418.4,2418.1,1.92405612]
[1728197545846,6.61604,2418.4,2418.1,1.00227563]
[1728197546053,6.61604,2418.4,2418.3,0.0048]
[1728197546409,6.61604,2418.4,2418.3,0.18470378]
[1728197547351,3.30798,2418.4,2418.3,0.18470378]
[1728197550806,3.30786,2418.5,2418.3,0.18470378]
[1728197552545,3.30797,2418.4,2418.3,0.18470378]
[1728197554420,4.12688,2418.6,2418.3,0.18470378]
[1728197555015,3.30797,2418.4,2418.3,0.18470378]
[1728197568178,3.30783,2418.5,2418.3,0.18470378]
[1728197568344,6.61575,2418.5,2418.3,0.18470378]
[1728197575825,3.30783,2418.5,2418.3,0.18470378]
[1728197576122,6.61575,2418.5,2418.3,0.18470378]
[1728197579090,3.30783,2418.5,2418.3,0.18470378]
[1728197579292,6.61574,2418.5,2418.3,0.18470378]
[1728197579495,3.30783,2418.5,2418.3,0.18470378]
[1728197579813,6.61574,2418.5,2418.3,0.18470378]
[1728197580655,3.30783,2418.5,2418.3,0.18470378]
[1728197580819,6.61574,2418.5,2418.3,0.18470378]
[1728197581719,3.30783,2418.5,2418.3,0.18470378]
[1728197582333,3.30797,2418.4,2418.3,0.18470378]
[1728197582542,3.30783,2418.5,2418.3,0.18470378]
[1728197582756,6.61573,2418.5,2418.3,0.18470378]
[1728197583114,3.30783,2418.5,2418.3,0.18470378]
[1728197583935,6.61573,2418.5,2418.3,0.18470378]
[1728197586112,6.61575,2418.5,2418.3,0.18470378]
[1728197588062,3.30797,2418.4,2418.3,0.18470378]
[1728197589971,3.30783,2418.5,2418.3,0.18470378]
[1728197592837,6.61574,2418.5,2418.3,0.18470378]
[1728197593031,3.30783,2418.5,2418.3,0.18470378]
[1728197593968,6.61574,2418.5,2418.3,0.18470378]
[1728197594379,3.30783,2418.5,2418.3,0.18470378]
[1728197594870,6.61574,2418.5,2418.3,0.18470378]
[1728197596334,3.30783,2418.5,2418.3,0.18470378]
[1728197596646,6.61574,2418.5,2418.3,0.18470378]
[1728197600360,3.30783,2418.5,2418.3,0.18470378]
[1728197600673,6.61574,2418.5,2418.3,0.18470378]
[1728197603007,3.30783,2418.5,2418.3,0.18470378]
[1728197603366,6.61574,2418.5,2418.3,0.18470378]
[1728197604899,3.30797,2418.4,2418.3,0.18470378]
[1728197607765,3.30797,2418.4,2418.3,0.0048]
[1728197610693,4.08927,2418.4,2418.3,0.0048]
[1728197611718,4.63927,2418.4,2418.3,0.0048]
[1728197612376,7.63927,2418.4,2418.3,0.0048]
[1728197612573,10.67437382,2418.4,2418.3,0.0048]
[1728197613406,7.63927,2418.4,2418.3,0.0048]
[1728197666325,10.6741791,2418.4,2418.3,0.0048]
[1728197666728,11.10396979,2418.4,2418.3,0.0048]
[1728197667252,11.10391622,2418.4,2418.3,0.0048]
[1728197672225,11.10369764,2418.4,2418.3,0.0048]
[1728197672845,8.06906069,2418.4,2418.3,0.0048]
[1728197675870,11.10369764,2418.4,2418.3,0.0048]
[1728197676032,8.06906069,2418.4,2418.3,0.0048]
[1728197676232,11.10369764,2418.4,2418.3,0.0048]
[1728197676828,8.06906069,2418.4,2418.3,0.0048]
[1728197678259,11.10354187,2418.4,2418.3,0.0048]
[1728197678533,8.06906069,2418.4,2418.3,0.0048]
[1728197678966,11.10354187,2418.4,2418.3,0.0048]
[1728197680472,8.06906069,2418.4,2418.3,0.0048]
[1728197680766,11.10354187,2418.4,2418.3,0.0048]
[1728197681974,11.1033141,2418.4,2418.3,0.0048]
[1728197682589,8.06906069,2418.4,2418.3,0.0048]
[1728197688991,8.71662118,2418.4,2418.3,0.0048]
[1728197692653,7.93532118,2418.4,2418.3,0.0048]
[1728197693249,7.93532118,2418.4,2418.3,0.79]
[1728197706621,7.28776069,2418.4,2418.3,0.79]
[1728197706922,6.85797,2418.4,2418.3,0.79]
[1728197710532,6.85797,2418.4,2418.3,0.78879169]
[1728197717062,6.85797,2418.4,2418.3,0.00359169]
[1728197721367,7.67617,2418.4,2418.3,0.00359169]
[1728197724762,12.03217,2418.4,2418.3,0.00359169]
[1728197724975,7.67617,2418.4,2418.3,0.00359169]
[1728197729064,3.30978,2417.1,2416.7,0.8103]
[1728197729245,3.30991,2417.0,2416.9,0.8103]
[1728197729633,3.30991,2417.0,2416.9,0.98291582]
[1728197729865,3.30978,2417.1,2416.9,0.98291582]
[1728197730068,3.30988,2417.0,2416.9,0.98291582]
[1728197730856,3.30988,2417.0,2416.9,0.99091582]
[1728197732446,3.30988,2417.0,2416.9,1.04210007]
[1728197748389,3.30978,2417.1,2416.9,1.04210007]
[1728197749800,6.61966,2417.1,2416.9,1.04210007]
[1728197751576,3.30957,2417.3,2417.0,0.758]
[1728197751818,3.30957,2417.3,2417.2,0.766]
[1728197751995,3.30957,2417.3,2417.2,0.98981153]
[1728197753289,6.61917,2417.3,2417.2,0.98981153]
[1728197759792,3.30957,2417.3,2417.2,0.98981153]
[1728197764196,3.30935,2417.4,2417.3,0.7846]
[1728197764404,3.30935,2417.4,2417.3,1.01635053]
[1728197770813,3.30921,2417.5,2417.3,1.01635053]
[1728197771005,3.30921,2417.5,2417.4,0.7846]
[1728197771206,3.30921,2417.5,2417.4,1.00824037]
[1728197774420,3.30921,2417.5,2417.4,0.22364037]
[1728197774598,3.30921,2417.5,2417.3,0.008]
[1728197774798,3.30934,2417.4,2417.3,0.008]
[1728197776025,3.30934,2417.4,2417.3,0.7637]
[1728197785713,3.30934,2417.4,2417.3,0.98733381]
[1728197808091,3.30921,2417.5,2417.3,0.98733381]
[1728197808274,0.7608,2417.7,2417.3,0.98733381]
[1728197808275,3.30901,2417.7,2417.3,0.98733381]
[1728197808477,3.30908,2417.6,2417.3,1.69176666]
[1728197808953,3.30908,2417.6,2417.3,1.06206228]
[1728197809498,3.30908,2417.6,2417.3,0.97933381]
[1728197809987,3.30901,2417.7,2417.3,0.97933381]
[1728197810155,3.30921,2417.5,2417.3,0.97933381]
[1728197810355,3.30921,2417.5,2417.4,0.008]
[1728197810780,3.30921,2417.5,2417.4,0.23155848]
[1728197816313,4.08437,2417.9,2417.4,0.23155848]
[1728197816314,3.3088,2417.8,2417.4,0.23155848]
[1728197816604,3.3088,2417.8,2417.5,0.7616]
[1728197816764,3.3088,2417.8,2417.7,0.008]
[1728197817163,3.3088,2417.8,2417.7,0.23136731]
[1728197830821,3.30867,2417.9,2417.7,0.23136731]
[1728197831117,6.61741,2417.9,2417.8,0.008]
[1728197831417,3.30867,2417.9,2417.8,0.008]
[1728197831613,3.30867,2417.9,2417.8,0.23124287]
[1728197831844,3.30867,2417.9,2417.8,0.008]
[1728197832329,3.30867,2417.9,2417.8,0.23124287]
[1728197832624,3.30859,2418.0,2417.8,0.008]
[1728197832821,3.30859,2418.0,2417.8,0.23122035]
[1728197833138,3.30859,2418.0,2417.9,0.22316551]
[1728197835838,3.30865,2417.9,2417.8,0.008]
[1728197836133,3.30865,2417.9,2417.8,0.23121625]
[1728197836420,3.30865,2417.9,2417.8,0.008]
[1728197836626,3.30865,2417.9,2417.8,0.23121625]
[1728197836785,3.30865,2417.9,2417.8,0.008]
[1728197836986,3.30865,2417.9,2417.8,0.23121625]
[1728197837225,3.30865,2417.9,2417.8,0.008]
[1728197837434,3.30865,2417.9,2417.8,0.23121625]
[1728197840321,3.30865,2417.9,2417.8,0.008]
[1728197841825,3.30865,2417.9,2417.8,0.23121625]
[1728197842033,3.30865,2417.9,2417.8,0.008]
[1728197842201,3.30865,2417.9,2417.8,0.23121625]
[1728197842736,4.13235,2417.9,2417.8,0.23121625]
[1728197842897,4.13235,2417.9,2417.8,0.008]
[1728197850574,4.68235,2417.9,2417.8,0.008]
[1728197870084,3.30865,2417.9,2417.8,0.008]
[1728197877204,4.05945,2417.9,2417.8,0.008]
[1728197908424,4.60945,2417.9,2417.8,0.008]
[1728197951717,5.03809238,2417.9,2417.8,0.008]
[1728197953918,5.19312855,2417.9,2417.8,0.008]
[1728197956613,5.84083337,2417.9,2417.8,0.008]
[1728197967801,4.9349972,2417.9,2417.8,0.7646]
[1728197968042,4.3849972,2417.9,2417.8,0.7646]
[1728197968338,3.73729238,2417.9,2417.8,0.7646]
[1728197968641,3.30865,2417.9,2417.8,0.7646]
[1728197972460,3.30865,2417.9,2417.8,0.96982753]
[1728197972901,6.61721,2418.0,2417.8,0.21322753]
[1728197973234,6.61721,2418.0,2417.9,0.7566]
[1728197973451,6.61721,2418.0,2417.9,0.96176474]
[1728198001679,3.30859,2418.0,2417.9,0.96176474]
[1728198003907,3.30839,2418.1,2418.0,0.794]
[1728198004214,3.30812,2418.3,2418.0,0.802]
[1728198004494,3.30812,2418.3,2417.9,0.20516474]
[1728198004495,3.30812,2418.3,2418.2,0.008]
[1728198004694,3.30812,2418.3,2418.2,0.802]
[1728198005374,3.30788,2418.5,2418.2,0.802]
[1728198005768,3.30788,2418.5,2418.4,0.008]
[1728198009402,3.30788,2418.5,2417.8,1.59824925]
[1728198009738,3.30806,2418.4,2417.9,0.49070593]
[1728198012168,3.30806,2418.4,2418.3,0.008]
[1728198012372,3.30806,2418.4,2418.3,0.802]
[1728198017382,3.30806,2418.4,2418.3,0.99973177]
[1728198023826,3.30788,2418.5,2418.3,0.99973177]
[1728198024528,6.61579,2418.5,2418.3,0.99973177]
[1728198027198,3.30764,2418.7,2418.4,0.7894]
[1728198027412,3.30764,2418.7,2418.6,0.008]
[1728198027831,3.30764,2418.7,2418.6,0.20551371]
[1728198105177,4.08094,2418.7,2418.6,0.20551371]
[1728198105389,4.63094,2418.7,2418.6,0.20551371]
[1728198105753,4.63094,2418.7,2418.6,0.008]
[1728198108784,4.08094,2418.7,2418.6,0.008]
[1728198108959,3.30764,2418.7,2418.6,0.008]
[1728198109945,3.30764,2418.7,2418.6,0.19370992]
[1728198110950,3.30764,2418.7,2418.6,0.008]
[1728198121580,3.30764,2418.7,2418.6,0.97147699]
[1728198129775,3.30742,2418.8,2418.6,0.97147699]
[1728198129988,3.30756,2418.7,2418.6,0.97147699]
[1728198134868,3.30742,2418.8,2418.6,0.97147699]
[1728198135069,0.7524,2419.1,2418.6,0.97147699]
[1728198135070,3.30731,2418.9,2418.6,0.97147699]
[1728198137811,3.30722,2419.0,2418.6,0.97147699]
[1728198137980,3.30722,2419.0,2418.8,0.7945]
[1728198138308,3.30722,2419.0,2418.9,0.19338477]
[1728198153294,3.30702,2419.1,2418.9,0.19338477]
[1728198153496,3.30696,2419.2,2418.9,0.19338477]
[1728198153700,6.61393,2419.2,2418.9,0.19338477]
[1728198156825,3.30696,2419.2,2418.9,0.19338477]
[1728198157214,3.30701,2419.1,2418.9,0.19338477]
[1728198159832,3.30696,2419.2,2418.9,0.19338477]
[1728198160189,6.61395,2419.2,2418.9,0.19338477]